Cogmind - Beta 14 @@@ ROGUE MODE // 2024.11.01 @ 21:15:17 Player: weedlord420 Result: Self-destructed Performance ------------- Evolutions (4) 2000 Regions Visited (10) 2000 Robots Destroyed (78) 390 Value Destroyed (4166) 4166 Prototype IDs (30) 600 Alien Tech Used (0) 0 Bonus (4147) 4147 TOTAL SCORE: 13303 Bonus ------- High Alert Combat Kills 702 Follower Combat Kills 1290 Entered Garrisons 400 Used RIF Installer 1500 Aligned with FarCom 300 Friendly Fire -45 Cogmind --------- Core Integrity 550/850 Matter 6/300 Energy 90/100 System Corruption 0% Temperature Cool (36) Movement Core (550) Ox10 Location -6/Factory Parts ------- > --- POWER (2) -------- (None) > --- PROPULSION (3) --- (None) > --- UTILITY (8) ------ Large Storage Unit Hacking Suite Hacking Suite Hacking Suite System Shield Relay Coupler [NC] (26) Relay Coupler [Heavy] (7) > --- WEAPON (2) ------- Heavy Gauss Cannon > --- INVENTORY (15) --- Antimatter Reactor Improved Light Armor Plating Improved Heavy Armor Plating Force Field Hacking Suite System Shield Relay Coupler [Behemoth] (16) Improved Grenade Launcher Remote Datajack Deploy-a-Sentry Deploy-a-Sentry Deploy-a-Sentry Peak State ------------ > --- POWER ------------ Improved Deuterium Engine Light Quantum Reactor > --- PROPULSION ------- Improved Medium Treads Improved Medium Treads Advanced Medium Treads > --- UTILITY ---------- Advanced Heat Sink Large Storage Unit Target Analyzer Improved Light Armor Plating Force Field Hacking Suite Hacking Suite System Shield > --- WEAPON ----------- Coil Gun Hypervelocity Mass Driver > --- INVENTORY -------- Antimatter Reactor Improved Heavy Armor Plating Hacking Suite Relay Coupler [NC] Relay Coupler [Sentry] Relay Coupler [Heavy] Relay Coupler [Behemoth] Heavy Gauss Cannon Improved Grenade Launcher Remote Datajack Deploy-a-Sentry Deploy-a-Sentry Deploy-a-Sentry [Rating: 75] Favorites ----------- Power Improved Deuterium Engine Engine Improved Deuterium Engine Power Core Light Nuclear Core Reactor Light Quantum Reactor Propulsion Improved Medium Treads Treads Improved Medium Treads Wheel Compact Wheel Utility Hacking Suite Device Improved Heat Sink Storage Large Storage Unit Processor Target Analyzer Hackware Hacking Suite Protection Hardened Light Armor Plating Weapon Coil Gun Energy Gun Arc Projector Energy Cannon Phase Cannon Ballistic Gun Coil Gun Ballistic Cannon Hypervelocity Mass Driver Launcher Improved Grenade Launcher Special Weapon Remote Datajack Special Melee Weapon Datajack Build | -11 -10 -10 -10 -9 -8 -7 -7 -7 -7 -6 ------- Run | Yrd Mat Min Exi Min Mat Fac Gar Fac Gar Fac Slots Evolved 8 | . . . . . 4 2 . . . 2 Power 1 | . . . . . . . . . . 1 Propulsion 1 | . . . . . . . . . . 1 Utility 6 | . . . . . 4 2 . . . . Weapon . | . . . . . . . . . . . Parts Attached 168 | 7 12 4 2 1 24 2 57 3 36 20 Power 12 | 1 . 1 1 . 3 . 3 . 1 2 Engine 9 | 1 . 1 . . 3 . 2 . 1 1 Core 1 | . . . 1 . . . . . . . Reactor 2 | . . . . . . . 1 . . 1 Propulsion 25 | 3 2 2 1 1 3 . 4 2 3 4 Treads 18 | 2 . 2 . 1 3 . 3 2 3 2 Leg . | . . . . . . . . . . . Wheel 7 | 1 2 . 1 . . . 1 . . 2 Hover . | . . . . . . . . . . . Flight . | . . . . . . . . . . . Utility 52 | 1 2 . . . 8 2 17 . 16 6 Device 11 | . . . . . 3 . 5 . 1 2 Storage 6 | 1 1 . . . 1 . 1 . 2 . Processor 2 | . . . . . 1 . 1 . . . Hackware 16 | . . . . . . 2 1 . 9 4 Protection 17 | . 1 . . . 3 . 9 . 4 . Artifact . | . . . . . . . . . . . Weapon 79 | 2 8 1 . . 10 . 33 1 16 8 Energy Gun 11 | . . . . . 2 . 9 . . . Energy Cannon 7 | . . . . . 1 . 6 . . . Ballistic Gun 31 | 2 4 1 . . 5 . 11 . 8 . Ballistic Cannon 8 | . . . . . . . . . 3 5 Launcher 12 | . 3 . . . 2 . 5 1 1 . Special Weapon 4 | . . . . . . . . . 1 3 Impact Weapon . | . . . . . . . . . . . Slashing Weapon . | . . . . . . . . . . . Piercing Weapon . | . . . . . . . . . . . Special Melee Weapon 6 | . 1 . . . . . 2 . 3 . Unidentified Prototypes 1 | . . . . . 1 . . . . . Parts Lost 27 | . 1 1 . . . . 15 . . 10 Power 2 | . . . . . . . . . . 2 Propulsion 8 | . . 1 . . . . 2 . . 5 Utility 11 | . . . . . . . 10 . . 1 Weapon 6 | . 1 . . . . . 3 . . 2 Highest Loss Streak 10 | . 1 1 . . . . 7 . . 10 To Critical Strikes . | . . . . . . . . . . . Average Slot Usage (%) 96 | . 85 100 100 100 93 100 94 98 97 95 Engine 5 | . 14 14 1 . 3 7 7 7 7 5 Core 3 | . . . 12 14 5 . . . . . Treads 15 | . 8 14 16 24 18 15 13 13 14 18 Wheel 4 | . 19 14 11 3 . . . . . . Device 8 | . . . . . 20 23 10 15 15 8 Storage 10 | . 14 14 14 14 9 7 8 7 9 6 Processor 5 | . . . . . 5 7 11 15 7 2 Hackware 10 | . . . . . . 15 13 15 20 29 Protection 9 | . 1 14 14 14 12 7 9 7 5 4 Energy Gun 1 | . . . . . 6 15 4 . . . Ballistic Gun 15 | . 21 27 28 28 10 . 6 14 10 5 Peak Build Rating 75 | 6 10 10 14 14 38 42 60 54 62 75 Average Rating 36 | 2 6 9 13 13 28 41 46 52 55 68 On Entrance 27 | . 6 10 10 14 14 37 42 53 52 62 Naked Turns . | . . . . . . . . . . . Heaviest Build 77 | 12 35 35 33 33 51 48 61 52 62 77 Greatest Support 90 | 40 40 40 40 40 56 56 58 60 60 90 Greatest Overweight (x) 4 | . 1 2 2 2 . . 4 . 1 3 Average Overweight (x) . | . . . . . . . . . . . Largest Inventory Capacity 15 | 8 15 15 15 15 15 15 15 15 15 15 Average Capacity 14 | 7 10 15 15 15 15 15 15 15 15 15 Most Carried 15 | 5 15 15 15 15 15 14 15 15 15 15 Average Carried 14 | 4 7 14 14 14 14 13 13 14 14 14 Final Capacity 15 | 8 15 15 15 15 15 15 15 15 15 15 Final Carried 15 | 3 15 15 15 15 15 13 15 15 15 13 Class Distribution -------------------- 41% | Mutant 21% | Scavenger-Mutant 12% | Hacker-Mutant 11% | Bothacker-Mutant 5% | Commander-Skirmisher 4% | Commander-Mutant Dominant Class ---------------- Mutant | -10/Materials Mutant | -10/Mines Mutant | -10/Exiles Mutant | -9/Mines Commander-Skirmisher | -8/Materials Hacker-Skirmisher | -7/Factory Scavenger-Mutant | -7/Garrison Scavenger-Mutant | -7/Factory Scavenger-Mutant | -7/Garrison Bothacker-Mutant | -6/Factory Resources | -11 -10 -10 -10 -9 -8 -7 -7 -7 -7 -6 ----------- Run | Yrd Mat Min Exi Min Mat Fac Gar Fac Gar Fac Matter Collected 3748 | 186 252 272 . 30 335 . 1307 . 1130 236 Remotely . | . . . . . . . . . . . Salvage Created 2842 | . 346 164 . . 211 . 1204 16 422 479 Parts 168 | . 28 8 . . 14 . 59 3 21 35 Haulers Intercepted 1 | . 1 . . . . . . . . . Recyclers Shooed 4 | . . 1 . . 2 . . . . 1 Parts Field Recycled . | . . . . . . . . . . . Retrieved Matter . | . . . . . . . . . . . Parts Self-Destructed . | . . . . . . . . . . . Prevented . | . . . . . . . . . . . Kills | -11 -10 -10 -10 -9 -8 -7 -7 -7 -7 -6 ------- Run | Yrd Mat Min Exi Min Mat Fac Gar Fac Gar Fac Combat Hostiles Destroyed 66 | . 14 5 . . 4 . 30 . 8 5 Guns 37 | . 6 5 . . 2 . 18 . 4 2 Cannons 5 | . . . . . . . . . 2 3 AOE 24 | . 8 . . . 2 . 12 . 2 . Classes Destroyed 15 | . 5 . . . 3 . 4 1 . 2 Worker 2 | . 1 1 . . . . . . . . Builder 3 | . . . . . . . . . . 3 Tunneler 1 | . . . . . . . . . . 1 Hauler 1 | . 1 . . . . . . . . . Recycler 2 | . . . . . 1 . . . . 1 Mechanic 1 | . . . . . . . . 1 . . Operator 1 | . 1 . . . . . . . . . Watcher 1 | . . . . . 1 . . . . . Swarmer 24 | . 9 3 . . 3 . 7 . 2 . Cutter 4 | . . . . . . . 4 . . . Grunt 22 | . 5 2 . . . . 10 . 2 3 Brawler 3 | . . . . . . . 2 . . 1 Duelist 4 | . . . . . . . 1 . 3 . Sentry 5 | . . . . . 1 . 4 . . . Programmer 4 | . . . . . . . 2 . 1 1 Best Kill Streak 5 | . 5 3 . . 2 . 4 1 2 4 Combat Bots Only 4 | . 4 3 . . 2 . 4 . 2 2 Max Kills in Single Turn 4 | . 4 1 . . 2 . 3 1 2 3 Gunslinging . | . . . . . . . . . . . Exploded 3 | . 3 . . . 2 . 3 . 2 . Melee . | . . . . . . . . . . . Uniques/NPCs Destroyed . | . . . . . . . . . . . Combat | -11 -10 -10 -10 -9 -8 -7 -7 -7 -7 -6 -------- Run | Yrd Mat Min Exi Min Mat Fac Gar Fac Gar Fac Hostile Shots Fired 653 | . 70 30 . . 17 15 262 36 68 155 Missed 206 | . 15 7 . . 3 5 91 11 16 58 Damage Taken 6042 | . 665 227 . . 189 70 2492 138 512 1749 Core 896 | . 144 36 . . 15 18 271 13 99 300 Absorbed by Shields 1279 | . . . . . . . 347 53 429 450 Regen/Repaired (Parts) 274 | . . . . . . . . 230 . 44 Core Remaining (%) 66 | 100 . . . 28 97 . . . 42 . Volleys Fired 350 | . 54 22 . . 16 1 141 2 78 36 Largest 2 | . 2 2 . . 2 2 2 2 2 2 Hottest 121 | . 50 40 . . 110 110 121 60 96 96 Shots Fired 645 | . 105 44 . . 32 2 265 3 131 63 Gun 527 | . 94 44 . . 31 2 229 2 98 27 Cannon 56 | . . . . . . . 14 . 12 30 Launcher 37 | . 11 . . . 1 . 22 1 2 . Special 25 | . . . . . . . . . 19 6 Kinetic 486 | . 94 44 . . 27 . 152 2 110 57 Thermal 14 | . . . . . . . 14 . . . Explosive 37 | . 11 . . . 1 . 22 1 2 . Electromagnetic 83 | . . . . . 4 2 77 . . . Robot Hit Streak 17 | . 11 8 . . 8 1 14 1 17 8 Robot Miss Streak 5 | . 3 3 . . 5 1 4 1 5 3 Penetration Max 1 | . . . . . . . 1 . 1 1 Secondary Targets 3 | . 1 . . . . . 2 . . . Max Gunslinging Chain 1 | . 1 . . . . . 1 . . . Shots Hit Robots 369 | . 60 28 . . 16 1 155 1 65 43 Core Hits 162 | . 29 10 . . 9 1 79 1 20 13 Critical Kills 9 | . . . . . . . 2 . 2 5 Critical Parts Destroyed 20 | . . . . . . . 5 . 2 13 Critical Strikes 32 | . . . . . . . 8 . 6 18 Destroy 32 | . . . . . . . 8 . 6 18 Melee Attacks 9 | . . . . . . . 1 . 8 . Impact . | . . . . . . . . . . . Slashing . | . . . . . . . . . . . Piercing . | . . . . . . . . . . . Sneak Attacks 1 | . . . . . . . 1 . . . Combat Hostiles 1 | . . . . . . . 1 . . . Follow-up Attacks . | . . . . . . . . . . . Damage Inflicted 8191 | . 1135 300 . . 423 19 4038 57 1226 993 Guns 4559 | . 486 300 . . 234 12 2034 24 950 519 Cannons 775 | . . . . . . . 161 . 146 468 Explosions 2834 | . 639 . . . 189 . 1843 33 130 . Melee . | . . . . . . . . . . . Ramming 23 | . 10 . . . . 7 . . . 6 Kinetic 4554 | . 486 300 . . 206 . 1455 24 1096 987 Thermal 283 | . . . . . . . 283 . . . Explosive 2712 | . 639 . . . 189 . 1721 33 130 . Electromagnetic 619 | . . . . . 28 12 579 . . . Impact . | . . . . . . . . . . . Slashing . | . . . . . . . . . . . Piercing . | . . . . . . . . . . . Highest Corruption 2 | . . . . . . . . . 2 . Average Corruption 1 | . . . . . . . . . 1 . Corruption Purged . | . . . . . . . . . . . Corruption Blocked . | . . . . . . . . . . . Effects 6 | . . . . . . . . . 6 . Message Errors 3 | . . . . . . . . . 3 . Matter Fused 1 | . . . . . . . . . 1 . Heat Flow Errors 1 | . . . . . . . . . 1 . Energy Discharges 1 | . . . . . . . . . 1 . Overload Shots . | . . . . . . . . . . . Overflow Damage 89 | . 5 . . . . . 33 . 14 37 Projectiles 51 | . . . . . . . . . 14 37 Explosions 38 | . 5 . . . . . 33 . . . Melee . | . . . . . . . . . . . Knockbacks 12 | . . . . . . . . . . 12 Impact . | . . . . . . . . . . . Kinetic 10 | . . . . . . . . . . 10 Secondary 2 | . . . . . . . . . . 2 Self-Inflicted Damage 226 | . 81 . . . . . 145 . . . Shots 11 | . 4 . . . . . 7 . . . Rammed 4 | . 1 . . . 1 1 . . . 1 Targets Rammed 4 | . 1 . . . 1 1 . . . 1 Kicked . | . . . . . . . . . . . Crushed . | . . . . . . . . . . . Highest Temperature 350 | . 52 44 . . 18 . 172 . 196 350 Average Temperature 56 | . 17 14 . . 12 . 42 . 114 124 Received Heat Transfer 1354 | . 255 81 . . 45 12 512 38 39 372 Effects 4 | . . . . . . . . . . 4 Shutdowns 1 | . . . . . . . . . . 1 Energy Bleed 1 | . . . . . . . . . . 1 Matter Decay 1 | . . . . . . . . . . 1 Damage (minor) 1 | . . . . . . . . . . 1 Siege Activations . | . . . . . . . . . . . Robots Corrupted . | . . . . . . . . . . . Combat Hostiles . | . . . . . . . . . . . Parts Fried 2 | . . . . . . . 2 . . . Impact Corruptions . | . . . . . . . . . . . Robots Melted . | . . . . . . . . . . . Combat Hostiles . | . . . . . . . . . . . Parts Melted 2 | . . . . . 2 . . . . . Heat Transferred 335 | . . . . . . . 335 . . . Parts Sabotaged . | . . . . . . . . . . . Parts Stolen . | . . . . . . . . . . . Parts Stripped . | . . . . . . . . . . . Power Chain Reactions 1 | . . . . . . . 1 . . . Alert | -11 -10 -10 -10 -9 -8 -7 -7 -7 -7 -6 ------- Run | Yrd Mat Min Exi Min Mat Fac Gar Fac Gar Fac Peak Influence 2008 | . 321 114 . . 168 39 2008 1054 1843 1033 Initial 1054 | . . 59 . . . 6 . 1054 606 967 Average 577 | . 172 76 . . 40 9 724 999 1015 755 Maximum Alert Level 5 | . 1 . . . . . 5 3 5 3 Low Security (%) 36 | 100 59 100 . 100 100 100 18 . . . Level 1 9 | . 40 . . . . . 21 . . 6 Level 2 11 | . . . . . . . 15 . 11 37 Level 3 30 | . . . . . . . 17 100 64 56 Level 4 7 | . . . . . . . 15 . 13 . Level 5 5 | . . . . . . . 11 . 9 . High Security . | . . . . . . . . . . . Max Security . | . . . . . . . . . . . Squads Dispatched 14 | . 2 . . . . 1 . 2 . 9 Investigation 2 | . 1 . . . . . . . . 1 Extermination 3 | . . . . . . . . . . 3 Reinforcement 5 | . 1 . . . . . . . . 4 Assault 2 | . . . . . . . . 1 . 1 Garrison 2 | . . . . . . 1 . 1 . . Intercept . | . . . . . . . . . . . Searches Triggered . | . . . . . . . . . . . Construction Impeded 1 | . . . . . . . . . . 1 Haulers Reinforced . | . . . . . . . . . . . Active Scanning Responses . | . . . . . . . . . . . Cargo Convoy Interrupts . | . . . . . . . . . . . Alert ID Control Effect 12 | . . . . . . . . . 3 9 Stealth | -11 -10 -10 -10 -9 -8 -7 -7 -7 -7 -6 --------- Run | Yrd Mat Min Exi Min Mat Fac Gar Fac Gar Fac Distress Signals 1 | . . . . . 1 . . . . . Communications Jammed . | . . . . . . . . . . . Distress Signals . | . . . . . . . . . . . Times Spotted 154 | . 24 7 . . 11 2 43 2 30 35 Peak Tracking Total 8 | . 5 3 . . 3 2 6 2 4 8 Tactical Retreats 12 | . . 2 . . . . 10 . . . Traps | -11 -10 -10 -10 -9 -8 -7 -7 -7 -7 -6 ------- Run | Yrd Mat Min Exi Min Mat Fac Gar Fac Gar Fac Traps Triggered 7 | . . . . . . . 4 . 2 1 Indirectly . | . . . . . . . . . . . Trap Hack Attempts . | . . . . . . . . . . . Triggered . | . . . . . . . . . . . Disarmed 6 | . 6 . . . . . . . . . Reprogrammed . | . . . . . . . . . . . Reused 1 | . . . . . . . . . 1 . Traps Extracted . | . . . . . . . . . . . Installed 2 | . . . . . . . . . 2 . Triggered 3 | . . . . . . . 2 . 1 . Most Traps Carried 2 | . . . . . . . . . 2 . Machines | -11 -10 -10 -10 -9 -8 -7 -7 -7 -7 -6 ---------- Run | Yrd Mat Min Exi Min Mat Fac Gar Fac Gar Fac Machines Disabled 26 | . . . . . . . 7 . 9 10 Max in Single Turn 2 | . . . . . . . 2 . 1 1 Garrison Relay 8 | . . . . . . . 4 . 4 . Machines Repaired . | . . . . . . . . . . . Machines Dismantled . | . . . . . . . . . . . Machines Sabotaged . | . . . . . . . . . . . Overloaded Fab Kills . | . . . . . . . . . . . Hacking | -11 -10 -10 -10 -9 -8 -7 -7 -7 -7 -6 --------- Run | Yrd Mat Min Exi Min Mat Fac Gar Fac Gar Fac Machines Accessed 27 | . 4 . 2 . 6 1 3 2 3 6 Terminals 19 | . 4 . . . 6 . 3 . 3 3 Fabricators 1 | . . . . . . . . . . 1 Repair Stations 2 | . . . . . . . . 1 . 1 Recycling Units . | . . . . . . . . . . . Scanalyzers 1 | . . . . . . . . . . 1 Garrison Access 2 | . . . . . . 1 . 1 . . Total Hacks 105 | . 13 . 24 . 25 1 4 8 4 26 Successful 67 | . 8 . 24 . 10 1 3 7 3 11 Failed 36 | . 4 . . . 14 . 1 1 1 15 Catastrophic 3 | . 1 . . . 1 . . . . 1 Database Lockouts 2 | . 1 . . . 1 . . . . . Manual 50 | . 11 . 1 . 21 . . . . 17 Terminals 65 | . 13 . . . 25 . 4 . 4 19 Fabricators 4 | . . . . . . . . . . 4 Repair Stations 8 | . . . . . . . . 6 . 2 Recycling Units . | . . . . . . . . . . . Scanalyzers 1 | . . . . . . . . . . 1 Garrison Access 3 | . . . . . . 1 . 2 . . Terminal Hacks 48 | . 5 . 24 . 5 . 3 . 3 8 Record 24 | . . . 23 . . . . . . 1 Robot Analysis 2 | . 1 . . . 1 . . . . . Prototype ID Bank 3 | . 1 . . . 1 . . . . 1 Branch Access Points 1 | . . . . . 1 . . . . . Emergency Access Points 2 | . . . . . . . 1 . 1 . Machine Index 1 | . . . . . . . . . . 1 Terminal Index 2 | . 1 . . . 1 . . . . . Unreport Threat 5 | . . . . . 1 . . . . 4 Disarm Traps 2 | . 2 . . . . . . . . . Recall Reinforcements 1 | . . . . . . . . . . 1 Garrison Registry 1 | . . . . . . . . . 1 . Patrol Navigation 2 | . . . . . . . 1 . 1 . Security Stations 1 | . . . . . . . 1 . . . Derelict Proto ID Bank 1 | . . . 1 . . . . . . . Fabricator Hacks . | . . . . . . . . . . . Repair Station Hacks 7 | . . . . . . . . 5 . 2 Scan Component 4 | . . . . . . . . 3 . 1 Repair 3 | . . . . . . . . 2 . 1 Recycling Unit Hacks . | . . . . . . . . . . . Scanalyzer . | . . . . . . . . . . . Garrison Access Hacks 3 | . . . . . . 1 . 2 . . Unlock Access 2 | . . . . . . 1 . 1 . . Coupler Status 1 | . . . . . . . . 1 . . Unauthorized Hacks 8 | . 3 . . . 4 . . . . 1 Terminals 7 | . 3 . . . 4 . . . . . Assimilate 1 | . . . . . 1 . . . . . Botnet 5 | . 2 . . . 3 . . . . . Operators 1 | . 1 . . . . . . . . . Fabricators 1 | . . . . . . . . . . 1 Download 1 | . . . . . . . . . . 1 Repair Stations . | . . . . . . . . . . . Recycling Units . | . . . . . . . . . . . Scanalyzers . | . . . . . . . . . . . Garrison Access . | . . . . . . . . . . . Data Cores Recovered . | . . . . . . . . . . . Used . | . . . . . . . . . . . Hacking Detections 22 | . 3 . . . 6 1 3 2 2 5 Full Trace Events 1 | . 1 . . . . . . . . . Feedback Events . | . . . . . . . . . . . Feedback Blocked . | . . . . . . . . . . . Robot Schematics Acquired . | . . . . . . . . . . . Robots Built . | . . . . . . . . . . . Authchips . | . . . . . . . . . . . Time . | . . . . . . . . . . . Total Robot Build Rating . | . . . . . . . . . . . Part Schematics Acquired 1 | . . . . . . . . . . 1 Parts Built . | . . . . . . . . . . . Authchips . | . . . . . . . . . . . Time . | . . . . . . . . . . . Total Part Build Rating . | . . . . . . . . . . . Parts Repaired 3 | . . . . . . . . 2 . 1 Time 190 | . . . . . . . . 140 . 50 Parts Recycled . | . . . . . . . . . . . Recycled Matter . | . . . . . . . . . . . Retrieved Matter . | . . . . . . . . . . . Retrieved Components . | . . . . . . . . . . . Parts Scanalyzed . | . . . . . . . . . . . Part Schematics Acquired . | . . . . . . . . . . . Parts Damaged . | . . . . . . . . . . . Bothacking | -11 -10 -10 -10 -9 -8 -7 -7 -7 -7 -6 ------------ Run | Yrd Mat Min Exi Min Mat Fac Gar Fac Gar Fac Used RIF Installer 3 | . . . . . . . 2 . 1 . Coupler Efficiency 1 | . . . . . . . . . 1 . Alert ID Control 1 | . . . . . . . 1 . . . Robots Hacked 15 | . . . . . . . . . 10 5 Non-combat 1 | . . . . . . . . . . 1 Combat 14 | . . . . . . . . . 10 4 Robot Hacks Applied 15 | . . . . . . . . . 10 5 formatsys_high 15 | . . . . . . . . . 10 5 Relay Couplers Released 29 | . . . . . . . 14 . 15 . Machine Destruction 29 | . . . . . . . 14 . 15 . Attached 11 | . . . . . . . . . 8 3 Fabnet Peak Effective % . | . . . . . . . . . . . Robots Rewired 7 | . . . . . . . 1 . 6 . Allies Hacked . | . . . . . . . . . . . Hacks Repelled . | . . . . . . . . . . . Allies | -11 -10 -10 -10 -9 -8 -7 -7 -7 -7 -6 -------- Run | Yrd Mat Min Exi Min Mat Fac Gar Fac Gar Fac Total Allies 29 | . . . . 6 1 . 1 . 16 5 Largest Group 9 | . . . . 6 5 4 2 . 9 7 Highest-Rated Group 254 | . . . . 114 83 50 85 . 247 254 Highest-Rated Ally 90 | . . . . 31 31 16 85 . 43 90 Total Orders 14 | . . . . . . . . . 14 . STAY 7 | . . . . . . . . . 7 . FOLLOW 7 | . . . . . . . . . 7 . Ally Attacks 202 | . . . . . 32 6 7 . 75 82 Total Damage 6849 | . . . . . 327 89 131 . 2051 4251 Kills 44 | . . . . . 7 . 2 . 14 21 Allies Corrupted . | . . . . . . . . . . . Allies Melted . | . . . . . . . . . . . Intel | -11 -10 -10 -10 -9 -8 -7 -7 -7 -7 -6 ------- Run | Yrd Mat Min Exi Min Mat Fac Gar Fac Gar Fac Robot Analysis Total 2 | . 1 . . . 1 . . . . . Derelict Logs Recovered 3 | . . 2 . 1 . . . . . . Drone Launches . | . . . . . . . . . . . Drone Recoveries . | . . . . . . . . . . . Exploration | -11 -10 -10 -10 -9 -8 -7 -7 -7 -7 -6 ------------- Run | Yrd Mat Min Exi Min Mat Fac Gar Fac Gar Fac Turns Passed 13326 | 69 875 775 2425 796 1149 101 2893 552 2328 1363 Spaces Moved 5899 | 48 589 366 317 517 583 60 1268 242 1210 699 Core 18 | 18 . . . . . . . . . . Treads 5046 | 27 120 267 223 375 583 60 1253 242 1210 686 Legs . | . . . . . . . . . . . Wheels 835 | 3 469 99 94 142 . . 15 . . 13 Hover . | . . . . . . . . . . . Flight . | . . . . . . . . . . . Fastest Speed 50 | 50 100 115 130 130 160 160 120 160 152 95 Average Speed 156 | 115 114 191 151 151 160 160 166 160 157 153 Slowest Speed 240 | 160 160 240 160 160 160 160 240 160 240 240 Overloaded Moves . | . . . . . . . . . . . Propulsion Burnouts . | . . . . . . . . . . . Robots Hopped . | . . . . . . . . . . . Cave-ins Triggered . | . . . . . . . . . . . Exploration Rate (%) 53 | 4 83 90 62 96 39 2 93 6 92 24 Regions Visited 10 Branch Regions 3 Pre-discovered Areas 3 | . . 2 1 . . . . . . . Known Exits Taken 2 | . . . . . . 1 . 1 . . Unknown Exits Taken 6 | 1 1 1 1 1 1 . . . . . Scrap Searched 2 | . . 1 . 1 . . . . . . Spaces Dug 53 | . 28 . . . . . 16 9 . . Terrain Destroyed 267 | . 87 . . . 12 . 124 9 33 2 Melee . | . . . . . . . . . . . Projectile 29 | . . . . . . . 18 . 9 2 AOE 236 | . 87 . . . 12 . 104 9 24 . Terrain Rammed . | . . . . . . . . . . . Walls Destroyed . | . . . . . . . . . . . Machines Disabled . | . . . . . . . . . . . Actions | -11 -10 -10 -10 -9 -8 -7 -7 -7 -7 -6 --------- Run | Yrd Mat Min Exi Min Mat Fac Gar Fac Gar Fac Total 9401 | 60 702 400 2263 529 775 63 1784 403 1501 921 Wait 2802 | . 29 7 1939 10 112 . 270 151 125 159 Move 5891 | 47 588 365 316 516 582 60 1267 242 1209 699 Hop . | . . . . . . . . . . . Pick Up 98 | 6 15 1 3 1 18 . 27 3 20 4 Fast Attach 19 | 3 1 . . . 2 . 5 1 4 3 Attach 44 | 3 1 1 . . 5 2 16 . 10 6 Detach 4 | . . . . . 1 . 2 . . 1 Swap 105 | 1 10 3 2 1 17 . 36 2 22 11 Drop 70 | . 3 1 3 1 21 . 19 2 19 1 Fire 350 | . 54 22 . . 16 1 141 2 78 36 Melee 9 | . . . . . . . 1 . 8 . Ram 1 | . 1 . . . . . . . . . Kick . | . . . . . . . . . . . Crush 2 | . . . . . 1 . . . . 1 Escape Stasis . | . . . . . . . . . . . Rewire 4 | . . . . . . . . . 4 . Trap 2 | . . . . . . . . . 2 . Miscellaneous . | . . . . . . . . . . . Route ------- -11/Scrapyard -10/Materials (discovered 4 exits: [*Mat x3] / [*Min]) -10/Mines (discovered 3 exits: [*Mat x2] / *Exi) -10/Exiles -9/Mines (discovered 2 exits: *Mat x2) -8/Materials -7/Factory -7/Garrison (discovered 2 exits: *Fac x2) -7/Factory (discovered 2 exits: *Fac / Gar) -7/Garrison (discovered 3 exits: *Fac x3) -6/Factory (discovered 1 exit: [*Fac]) History --------- Turn | Location | Event 5 | -11/Scrapyard | Discovered new exit (range 16) 70 | -11/Scrapyard | Entered Materials 301 | -10/Materials | Build established: Mutant 340 | -10/Materials | Central database locked down 398 | -10/Materials | Discovered new exit (range 16) 564 | -10/Materials | Discovered new exit (range 11) 634 | -10/Materials | Discovered new exit (range 10) 648 | -10/Materials | Core integrity fell below 50% 748 | -10/Materials | Discovered new exit (range 12) 945 | -10/Materials | Entered Mines 964 | -10/Mines | Discovered new exit (range 4) 1009 | -10/Mines | Learned location of Zion (-7) 1134 | -10/Mines | Discovered new exit (range 7) 1199 | -10/Mines | Learned location of Storage (-7) 1304 | -10/Mines | Learned Materials emergency access door positions 1713 | -10/Mines | Deemed a non-threat by the Exiles lab entrance 1713 | -10/Mines | Discovered new exit (range 5) 1720 | -10/Mines | Entered Exiles 1762 | -10/Exiles | Met 8R-AWN 1788 | -10/Exiles | Met EX-HEX 1836 | -10/Exiles | Met EX-BIN 1855 | -10/Exiles | Aligned with FarCom system 1856 | -10/Exiles | Given EX-Vault access code 1893 | -10/Exiles | Opened EX-Vault 1909 | -10/Exiles | Found Deploy-a-Sentry 1912 | -10/Exiles | Found Deploy-a-Sentry 1914 | -10/Exiles | Found Deploy-a-Sentry 1946 | -10/Exiles | Warned to stay clear of 0b10 Research branches 1992 | -10/Exiles | Met EX-DEC 4129 | -10/Exiles | Discovered new exit (range 14) 4145 | -10/Exiles | Left Exiles lab with Deploy-a-Sentry 4145 | -10/Exiles | Entered Mines 4147 | -9/Mines | Assisted by bots powering up and referring to "LRC-V3" 4206 | -9/Mines | Received a Mining Laser from a helpful Derelict 4344 | -9/Mines | Discovered new exit (range 15) 4372 | -9/Mines | Discovered new exit (range 16) 4608 | -9/Mines | Learned Materials trap positions 4941 | -9/Mines | Entered Materials 4941 | -8/Materials | Accompanied by 5 allies 4941 | -8/Materials | Evolved 4 slots: Utility x4 4942 | -8/Materials | Loaded intel: 15 trap records 4946 | -8/Materials | Led the pair of lost Derelicts to an unsafe place 5318 | -8/Materials | Build established: Scavenger-Mutant 5728 | -8/Materials | Build established: Commander-Skirmisher 6047 | -8/Materials | Discovered new exit (range 8) 6073 | -8/Materials | Central database locked down 6090 | -8/Materials | Entered Factory 6090 | -7/Factory | Accompanied by 4 allies 6090 | -7/Factory | Evolved 2 slots: Utility x2 6176 | -7/Factory | Identified exit to Garrison 6187 | -7/Factory | Garrison activated, responded to threat 6191 | -7/Factory | Entered Garrison 6191 | -7/Garrison | Accompanied by 2 allies 6301 | -7/Garrison | Triggered checkpoint 6389 | -7/Garrison | Build established: Hacker-Skirmisher 6640 | -7/Garrison | Triggered checkpoint 6706 | -7/Garrison | Triggered checkpoint 6844 | -7/Garrison | Installed Relay Interface Framework 6891 | -7/Garrison | Spotted B-75 Beast 6956 | -7/Garrison | Rewired B-75 Beast 6977 | -7/Garrison | Lost 7 parts (2n4u1w) 6995 | -7/Garrison | Build established: Mutant 7239 | -7/Garrison | Triggered checkpoint 7259 | -7/Garrison | Triggered checkpoint 7338 | -7/Garrison | Lost 3 parts (3u) 7486 | -7/Garrison | Lost 3 parts (1u2w) 7606 | -7/Garrison | Discovered new exit (range 8) 7826 | -7/Garrison | Discovered new exit (range 12) 7838 | -7/Garrison | Build established: Hacker-Mutant 7849 | -7/Garrison | Expanded RIF knowledge: Alert ID Control 7916 | -7/Garrison | Garrison Relay disabled 8187 | -7/Garrison | Triggered checkpoint 8456 | -7/Garrison | Build established: Scavenger-Mutant 8558 | -7/Garrison | Learned Factory security intel 8558 | -7/Garrison | Garrison Relay disabled 8661 | -7/Garrison | Triggered checkpoint 8670 | -7/Garrison | Garrison Relay disabled 9084 | -7/Garrison | Entered Factory 9274 | -7/Factory | Repaired Corrupted Imp. Medium Treads 9345 | -7/Factory | Repaired Broken Imp. Medium Treads 9459 | -7/Factory | Discovered new exit (range 8) 9484 | -7/Factory | First assault squad dispatched 9636 | -7/Factory | Identified exit to Garrison 9636 | -7/Factory | Entered Garrison 9671 | -7/Garrison | Triggered checkpoint 9776 | -7/Garrison | Discovered new exit (range 49) 9776 | -7/Garrison | Discovered new exit (range 63) 9776 | -7/Garrison | Discovered new exit (range 60) 9997 | -7/Garrison | Triggered checkpoint 10030 | -7/Garrison | Core integrity fell below 50% 10103 | -7/Garrison | Garrison Relay disabled 10348 | -7/Garrison | Triggered checkpoint 10372 | -7/Garrison | Triggered checkpoint 10754 | -7/Garrison | Build established: Bothacker-Mutant 10970 | -7/Garrison | Triggered checkpoint 10984 | -7/Garrison | Garrison Relay disabled 11114 | -7/Garrison | Triggered checkpoint 11128 | -7/Garrison | Triggered checkpoint 11263 | -7/Garrison | Spotted B-75 Beast 11269 | -7/Garrison | Allies destroyed B-75 Beast 11391 | -7/Garrison | Build established: Commander-Mutant 11421 | -7/Garrison | P-60 Hacker assimilated allied Commando 4e 11442 | -7/Garrison | Triggered checkpoint 11530 | -7/Garrison | Expanded RIF knowledge: Coupler Efficiency 11700 | -7/Garrison | Triggered checkpoint 11721 | -7/Garrison | Garrison Relay disabled 11902 | -7/Garrison | Garrison Relay disabled 11964 | -7/Garrison | Entered Factory 11964 | -6/Factory | Accompanied by 6 allies 11964 | -6/Factory | Evolved 2 slots: Power x1, Propulsion x1 12040 | -6/Factory | Build established: Bothacker-Mutant 12314 | -6/Factory | First assault squad dispatched 12392 | -6/Factory | Repaired Force Field 12899 | -6/Factory | Discovered new exit (range 7) 12930 | -6/Factory | Lost 4 allies 13064 | -6/Factory | Lost 3 allies 13198 | -6/Factory | Build established: Hacker-Mutant 13327 | -6/Factory | Self-destructed Last Messages --------------- 13313_ Imp. Medium Treads destroyed. 13313_ K-01 Serf collects debris. 13314_ Acquired 5 matter. 13315_ K-01 Serf collects debris. 13315_ Slug penetrates G-50 Soldier. 13315_ G-50 Soldier destroyed. 13316_ K-01 Serf collects debris. 13316_ K-01 Serf cleans the Matter Pump. 13316_ Critical hit (Burn: +37). 13316_ Slug penetrates G-50 Soldier. 13318_ Slug penetrates Matter Pump. 13318_ Med. Treads destroyed. 13319_ K-01 Serf collects debris. 13320_ Penetrated by Slug. 13320_ K-01 Serf collects debris. 13324_ Slug penetrates Matter Pump. 13324_ Wheel destroyed. 13325_ K-01 Serf collects debris. 13326_ Slug penetrates Matter Pump. 13327_ Critical hit (Burn: +37). Map ----- +----------------------------------------------------+ | ?# ! #????????????????? #???????????????????? | | ?########???????????????? #???????????????????? | | ????????????????????????? #???????????????????? | | ????????????????????????? #???????????????????? | | #########???????????????? ????????????????????? | | #??????????######/####???????????????????? | | ##############* ! #???????????????????? | | !!!! =%[ #???????????????????? | | % !*% ! # "????????????????? | | T %%%%%=%" %# "??? ?????????? | | % %%%!]"" #???? ?????????? | | "%%k["" #??? ??????????? | | * ######### h u#? ?????????????? | | #???????#%%"%% % " # #???????????????? | | # ###???????#% ""%%% %[ # #???????????????? | | # ########??# ""%k%!%%* #???????????????????? | | # # #??# ! h%% ! #???#???????????????? | | + # "" #??# *"""%%% #?? #Y??????????????? | | # # "" #### %""" %"% #? #???????????????? | | # # F" + """ %%% # ????????????????? | | # # = "" # gg # ?#???????????????? | | # # # ""%% u; #???????????????? | | # # """ + ""% # #???????????????? | | # # """ # """ !! #???????????????? | | # + """ # l #???????????????? | | # # + ! @ +???????????????? | | # # # #???????????????? | | # ######## #???????????????? | | #????# ##### ######???????????????? | | #????# ####???# #????????????????????? | | !#????# #??????# #????????????????????? | | #????# #?????? ????????????????????? | | #???? ?????? ????????????????????? | | #### T #???# ^u???????????????????? | | "" ?????# ???????????????????? | | #### #???# ??????????????????? | | #??? ????# ""??????????????????? | | ## ######??## ?????# #! "F ?????????????????? | | ?# #????????# ?????#g ? "???????????????????? | | ?# #????????? ? ?????# ? "???????????????????? | | ?# #??????????? ??????? ? ?????????????????????? | | ?# #?????????????????????????????????????????????? | | ?# #?????????????????????????????????????????????? | | ?# #?????????????????????????????????????????????? | | ?# #?????????????????????????????????????????????? | | ?# #?????????????????????????????????????????????? | | ?#%#?????????????????????????????????????????????? | | ?#%#?????????????????????????????????????????????? | | ## ###???????? ? #??????????????????????????????? | | % #??????? ^ #???????????????????????????????? | +----------------------------------------------------+ Best States ------------- Heat Dissipation 56 Energy Generation 36 Energy Capacity 490 Matter Stores 300 Matter Capacity 300 Sight Range 16 Terrain Scan Density 10 Armor Coverage 825 Resistance: TH 15 Evasion (%) 50 Target Analysis 5 Recoil Reduction 3 Particle Charging 15 Offensive Hacking 30 Defensive Hacking 10 Relay Coupler Types 2 Relay Coupler Value 65 Item Schematics ----------------- Antigrav Array | -6/Factory | Downloaded Robot Schematics ------------------ None Fabricated ------------ Nothing Alien Tech Used ----------------- None Achievements -------------- Assimilation Complete Challenges ------------ None Game ------ Seed VariableHeatTorch Manual? 0 Play Time 01:13:38 Cumulative 95.2 hours Start 2024.11.01 @ 19:58:55 End 2024.11.01 @ 21:15:17 Sessions 1 Manual Loads 0 Difficulty Rogue Special Mode None Game No. 151 Rogue 150 Adventurer 1 Explorer 0 Win Type - Total 1 Types 0/0/0/1/0/0/0/0/0 Lore% 56 Gallery% 56 Achievement% 47 Wizard Run 0 Options --------- Layout 1 ASCII 0 Keyboard 0 Movement Mouse Keybinds 0 Fullscreen 2 Font 24/Terminus Map View 50x35 Zoom Use 0% Tactical HUD 1 Map Filters NONE Filters NONE Steam 1 RUN: 0b9ff7c7-9a14-4cc4-ad1c-57e5f34c8790